bitfinex/quotes_BTCUSD_20240715
["timestamp","ask_amount","ask_price","bid_price","bid_amount"]
[1721041396555,0.04457232,62661.0,62658.0,0.159595]
[1721041396762,0.319995,62664.0,62657.0,0.319198]
[1721041396763,0.04457232,62662.0,62659.0,0.159593]
[1721041396973,0.03070481,62661.0,62660.0,0.159591]
[1721041397445,0.03070481,62661.0,62659.0,0.159593]
[1721041397650,0.004,62660.0,62659.0,0.159593]
[1721041397856,0.004,62660.0,62658.0,0.160596]
[1721041398276,0.004,62660.0,62659.0,0.159593]
[1721041398719,0.159583,62663.0,62659.0,0.159593]
[1721041398925,0.004,62660.0,62659.0,0.159593]
[1721041399767,0.006,62660.0,62659.0,0.159593]
[1721041400378,0.002,62660.0,62659.0,0.159593]
[1721041400589,0.002,62660.0,62659.0,0.160593]
[1721041400791,0.002,62660.0,62659.0,0.159593]
[1721041401273,0.005,62660.0,62659.0,0.159593]
[1721041401937,0.005,62660.0,62659.0,0.47878]
[1721041402169,0.005,62660.0,62659.0,0.87339468]
[1721041402383,0.005,62660.0,62659.0,1.49618168]
[1721041403006,0.003,62660.0,62659.0,1.92968168]
[1721041403418,0.00083,62664.0,62663.0,0.797917]
[1721041403873,0.00083,62664.0,62663.0,0.87334468]
[1721041404074,0.00083,62664.0,62663.0,1.19251168]
[1721041404484,0.00083,62664.0,62663.0,1.117084]
[1721041404706,0.00083,62664.0,62663.0,1.19251168]
[1721041404904,0.00083,62664.0,62663.0,1.19751168]
[1721041405149,0.00083,62664.0,62663.0,1.122084]
[1721041405781,0.00083,62664.0,62663.0,1.19751168]
[1721041405959,0.00083,62664.0,62663.0,1.122084]
[1721041406099,0.00183,62664.0,62663.0,1.128084]
[1721041406508,0.00183,62664.0,62663.0,1.20351168]
[1721041406922,0.00183,62664.0,62663.0,0.808917]
[1721041407118,0.00183,62664.0,62663.0,0.48975]
[1721041407558,0.00183,62664.0,62663.0,0.011]
[1721041407766,0.00183,62664.0,62663.0,0.170583]
[1721041408212,0.00183,62664.0,62663.0,0.011]
[1721041408419,0.00183,62664.0,62663.0,0.48975]
[1721041409628,0.00183,62664.0,62663.0,0.170583]
[1721041409792,0.00183,62664.0,62663.0,0.48975]
[1721041411523,0.00183,62664.0,62663.0,0.808917]
[1721041411730,0.00183,62664.0,62663.0,0.011]
[1721041411929,0.06673,62664.0,62663.0,0.011]
[1721041412564,0.06673,62664.0,62663.0,0.170583]
[1721041412770,0.00183,62664.0,62663.0,0.170583]
[1721041413383,0.00183,62664.0,62663.0,0.011]
[1721041413982,0.00183,62664.0,62663.0,0.170583]
[1721041414595,0.00183,62664.0,62663.0,0.48975]
[1721041418294,0.00183,62664.0,62663.0,0.808917]
[1721041418494,0.00183,62664.0,62663.0,0.88434468]
[1721041418923,0.00183,62664.0,62663.0,0.96064468]
[1721041419105,0.00183,62664.0,62663.0,1.34401168]
[1721041419832,0.00183,62664.0,62663.0,1.50612959]
[1721041420888,0.00183,62664.0,62663.0,1.77432959]
[1721041421103,0.00183,62664.0,62663.0,1.97432959]
[1721041421313,0.00183,62664.0,62663.0,1.77432959]
[1721041422167,0.00183,62664.0,62663.0,1.90683048]
[1721041423194,0.00183,62664.0,62663.0,1.80683048]
[1721041423395,0.00183,62664.0,62663.0,1.90683048]
[1721041424334,0.00183,62664.0,62663.0,1.8314028]
[1721041424532,0.00183,62664.0,62663.0,1.83140239]
[1721041424739,0.00183,62664.0,62663.0,1.90683007]
[1721041425392,0.00183,62664.0,62663.0,2.10683007]
[1721041425805,0.00183,62664.0,62663.0,1.90683007]
[1721041426463,0.00183,62664.0,62663.0,2.10683007]
[1721041427099,0.00183,62664.0,62663.0,1.90683007]
[1721041427552,0.00183,62664.0,62663.0,2.42599707]
[1721041427771,0.00183,62664.0,62663.0,2.525996]
[1721041429041,0.00183,62664.0,62663.0,2.325996]
[1721041430126,0.00183,62664.0,62663.0,1.598129]
[1721041430366,0.00183,62664.0,62663.0,1.46562959]
[1721041434886,0.00183,62664.0,62663.0,1.73382959]
[1721041436153,0.00183,62664.0,62663.0,1.93382959]
[1721041436993,0.00183,62664.0,62663.0,1.73382959]
[1721041437225,0.00183,62664.0,62663.0,1.63382959]
[1721041437738,0.00183,62664.0,62663.0,1.73382959]
[1721041441188,0.00183,62664.0,62663.0,1.86633226]
[1721041441706,0.00183,62664.0,62663.0,1.73382959]
[1721041442173,0.00183,62664.0,62663.0,1.86633312]
[1721041442642,0.00183,62664.0,62663.0,1.79090544]
[1721041443025,0.00183,62664.0,62663.0,1.73382959]
[1721041443047,0.00183,62664.0,62663.0,1.86633311]
[1721041444102,0.00183,62664.0,62663.0,1.73382959]
[1721041444335,0.00183,62664.0,62663.0,1.63382959]
[1721041445303,0.00183,62664.0,62663.0,1.76633232]
[1721041445547,0.00183,62664.0,62663.0,1.86633232]
[1721041445781,0.00183,62664.0,62663.0,1.63382959]
[1721041446272,0.00183,62664.0,62663.0,1.76633536]
[1721041446517,0.00183,62664.0,62663.0,1.59813432]
[1721041446765,0.00183,62664.0,62663.0,1.46562959]
[1721041447029,0.00183,62664.0,62663.0,1.59813445]
[1721041447537,0.00183,62664.0,62663.0,1.46562959]
[1721041447790,0.00183,62664.0,62663.0,1.59813444]
[1721041448544,0.00183,62664.0,62663.0,2.70400142]
[1721041448782,0.00183,62664.0,62663.0,2.9794291]
[1721041449250,0.00183,62664.0,62663.0,2.9793525]
[1721041451207,0.00183,62664.0,62663.0,2.70392482]
[1721041451459,0.00183,62664.0,62663.0,2.9793525]
[1721041452639,0.00183,62664.0,62663.0,2.97935403]
[1721041453358,0.00183,62664.0,62663.0,3.29852103]
[1721041453565,0.00083,62675.0,62674.0,1.80871568]
[1721041453779,0.00083,62675.0,62674.0,2.51774459]
[1721041453994,0.00083,62675.0,62674.0,2.65022264]
[1721041454208,0.00083,62675.0,62674.0,2.44231691]
[1721041454637,0.00083,62675.0,62674.0,2.51774459]
[1721041454853,0.06383,62675.0,62674.0,1.95043359]
[1721041455059,0.06483,62675.0,62674.0,1.95643359]
[1721041455277,0.06483,62675.0,62674.0,1.71280591]
[1721041455523,0.06483,62675.0,62674.0,1.72080591]
[1721041455798,0.06483,62675.0,62674.0,1.72380591]
[1721041456025,0.06483,62675.0,62674.0,1.72080591]
[1721041456279,0.06483,62675.0,62674.0,1.72680591]
[1721041456536,0.06583,62675.0,62674.0,1.72680591]
[1721041456995,0.06483,62675.0,62674.0,1.78823359]
[1721041457231,0.06483,62675.0,62674.0,1.79523359]
[1721041457467,0.00183,62675.0,62674.0,1.79523359]
[1721041457691,0.00083,62675.0,62674.0,1.78223359]
[1721041457921,0.00083,62675.0,62674.0,1.70980591]
[1721041458148,0.00083,62675.0,62674.0,1.71680591]
[1721041458149,0.07973,62675.0,62674.0,1.71680591]
[1721041458402,0.07973,62675.0,62674.0,1.71380591]
[1721041458839,0.08073,62675.0,62674.0,1.71980591]
[1721041459303,0.08073,62675.0,62674.0,0.4408]
[1721041459529,0.37506603,62675.0,62674.0,0.007]
[1721041460007,0.10507232,62671.0,62670.0,0.159565]
[1721041460230,0.13578303,62671.0,62670.0,0.159565]
[1721041460707,0.13578303,62671.0,62663.0,0.4771]
[1721041460708,0.298976,62666.0,62663.0,0.4771]
[1721041461172,0.1358216,62665.0,62663.0,0.4771]
[1721041461176,0.18397232,62664.0,62663.0,0.4771]
[1721041461404,0.17014928,62664.0,62663.0,0.4771]
[1721041462066,0.17018925,62664.0,62663.0,0.4771]
[1721041462551,0.17918925,62664.0,62663.0,0.4781]
[1721041462770,0.17918925,62664.0,62663.0,0.4771]
[1721041462995,0.18318925,62664.0,62663.0,0.4771]
[1721041463443,0.18318925,62664.0,62663.0,0.636683]
[1721041464084,0.1524,62664.0,62663.0,0.636683]
[1721041464361,0.1524,62664.0,62663.0,0.4771]
[1721041464563,0.2277989,62664.0,62663.0,0.4771]
[1721041464729,0.2327989,62664.0,62663.0,0.4771]
[1721041465149,0.2277989,62664.0,62663.0,0.4771]
[1721041465353,0.18325361,62664.0,62663.0,0.4771]
[1721041465688,0.23082593,62664.0,62663.0,0.4771]
[1721041465925,0.39040693,62664.0,62660.0,0.2]
[1721041466185,0.00267499,62662.0,62660.0,0.35959]
[1721041466639,0.00267499,62662.0,62661.0,0.159588]
[1721041467084,0.00267499,62662.0,62660.0,0.2]
[1721041467085,0.16226199,62662.0,62660.0,0.2]
[1721041467299,0.00267499,62662.0,62660.0,0.2]
[1721041468450,0.00367499,62662.0,62660.0,0.2]
[1721041469433,0.00367499,62662.0,62660.0,0.35959]
[1721041469688,0.00367499,62662.0,62660.0,0.2]
[1721041470189,0.001,62662.0,62660.0,0.2]
[1721041470435,0.00267499,62661.0,62660.0,0.2]
[1721041470654,0.00267499,62661.0,62660.0,0.359591]
[1721041471583,0.00867499,62662.0,62660.0,0.360591]
[1721041471807,0.004,62661.0,62660.0,0.359591]
[1721041472766,0.004,62661.0,62660.0,0.678773]
[1721041473021,0.005,62661.0,62660.0,0.678773]
[1721041473253,0.005,62661.0,62660.0,1.55468259]
[1721041473475,0.005,62661.0,62660.0,2.24206459]
[1721041473975,0.005,62661.0,62660.0,2.45279676]
[1721041474233,0.005,62661.0,62660.0,2.58087298]
[1721041474234,0.003,62661.0,62660.0,2.58087298]
[1721041474459,0.003,62661.0,62660.0,2.63309676]
[1721041474687,0.004,62661.0,62660.0,2.63309676]
[1721041474929,0.005,62661.0,62660.0,2.64009676]
[1721041475146,0.006,62661.0,62660.0,2.64609676]
[1721041475608,0.006,62661.0,62660.0,2.69385175]
[1721041476071,0.006,62661.0,62660.0,2.64609676]
[1721041476183,0.006,62661.0,62660.0,3.19749919]
[1721041476493,0.00350499,62675.0,62674.0,1.39231568]
[1721041476731,0.00350499,62675.0,62674.0,1.63066184]
[1721041476968,0.00083,62675.0,62674.0,1.63066184]
[1721041477446,0.00083,62675.0,62674.0,2.06097975]
[1721041477951,0.00783,62675.0,62674.0,2.06197975]
[1721041478840,0.00783,62675.0,62674.0,1.98655207]
[1721041479049,0.00783,62675.0,62674.0,2.06197975]
[1721041479655,0.01883,62675.0,62674.0,2.06297975]
[1721041480501,0.01883,62675.0,62674.0,2.38209075]
[1721041480925,0.01883,62675.0,62674.0,2.30666307]
[1721041481129,0.01883,62675.0,62674.0,2.38209075]
[1721041481372,0.01883,62675.0,62674.0,2.40666307]
[1721041482218,0.01883,62675.0,62674.0,2.48209075]
[1721041486358,0.01883,62675.0,62674.0,2.40666307]
[1721041487236,0.01883,62675.0,62674.0,2.48209075]
[1721041489095,0.01883,62675.0,62674.0,2.55969075]
[1721041490158,0.01183,62675.0,62674.0,2.55869075]
[1721041490572,0.01183,62675.0,62674.0,2.56069075]
[1721041490996,0.01183,62675.0,62674.0,2.75869075]
[1721041491643,0.00083,62675.0,62674.0,2.75769075]
[1721041492078,0.00083,62675.0,62674.0,2.76869075]
[1721041492281,0.00083,62675.0,62674.0,2.76769075]
[1721041492707,0.00083,62675.0,62674.0,2.78069075]
[1721041492952,0.00083,62675.0,62674.0,2.58069075]
[1721041493149,0.00083,62675.0,62674.0,2.57069075]
[1721041493571,0.00083,62675.0,62674.0,2.58469075]
[1721041503152,0.06703,62675.0,62674.0,2.01255207]
[1721041503403,0.06703,62675.0,62674.0,0.03754616]
[1721041503404,0.624189,62675.0,62674.0,0.03754616]
[1721041503646,0.70361711,62675.0,62674.0,0.03754616]
[1721041503882,0.72496052,62675.0,62674.0,0.03754616]
[1721041504139,0.72496052,62675.0,62674.0,0.02354616]
[1721041504140,0.6803882,62675.0,62674.0,0.02354616]
[1721041504381,0.2017292,62675.0,62674.0,0.172555]
[1721041504589,0.2017292,62675.0,62674.0,0.491666]
[1721041504590,0.1763971,62675.0,62674.0,0.491666]
[1721041504818,0.1763971,62675.0,62674.0,0.50221216]
[1721041505535,0.1763971,62675.0,62674.0,0.80832316]
[1721041505747,0.1763971,62675.0,62674.0,1.56497975]
[1721041505949,0.1008971,62675.0,62674.0,1.56597975]
[1721041506168,0.0978971,62675.0,62674.0,1.56497975]
[1721041506378,0.09770028,62675.0,62674.0,1.56597975]
[1721041506589,0.09770028,62675.0,62674.0,1.83407975]
[1721041506590,0.00383,62675.0,62674.0,1.83407975]
[1721041506828,0.00383,62675.0,62674.0,1.93307975]
[1721041507046,0.00483,62675.0,62674.0,1.93307975]
[1721041507893,0.00483,62675.0,62674.0,1.93807975]
[1721041508554,0.00083,62675.0,62674.0,1.93807975]
[1721041508768,0.00183,62675.0,62674.0,1.93807975]
[1721041509214,0.00083,62675.0,62674.0,1.93807975]
[1721041509468,0.00083,62675.0,62674.0,1.94307975]
[1721041511427,0.00083,62675.0,62674.0,2.59466447]
[1721041511636,0.00083,62675.0,62674.0,3.01377547]
[1721041511854,0.00834,62676.0,62675.0,1.76039868]
[1721041512182,0.00834,62676.0,62675.0,2.15499031]
[1721041512417,0.00834,62676.0,62675.0,2.82673519]
[1721041512865,0.00834,62676.0,62675.0,2.87443132]
[1721041513099,0.00834,62676.0,62675.0,2.87843132]
[1721041513290,0.00834,62676.0,62675.0,2.87039852]
[1721041513754,0.00834,62676.0,62675.0,2.8226922]
[1721041513961,0.00834,62676.0,62675.0,2.8256922]
[1721041514165,0.00834,62676.0,62675.0,2.87339852]
[1721041514873,0.00834,62676.0,62675.0,2.8256922]
[1721041515617,0.00834,62676.0,62675.0,3.25097183]
[1721041515841,0.00834,62676.0,62675.0,2.89725168]
[1721041516056,0.00834,62676.0,62675.0,3.25098907]
[1721041516259,0.00834,62676.0,62675.0,3.1794027]
[1721041516468,0.00834,62676.0,62675.0,3.04693763]
[1721041516678,0.00834,62676.0,62675.0,3.27486811]
[1721041517084,0.00834,62676.0,62675.0,3.17939861]
[1721041517288,0.00834,62676.0,62675.0,3.27486811]
[1721041518125,0.00834,62676.0,62675.0,3.29873549]
[1721041519043,0.00834,62680.0,62679.0,0.1919672]
[1721041519258,0.00834,62680.0,62679.0,2.84584194]
[1721041519500,0.00834,62680.0,62679.0,3.19309705]
[1721041519733,0.00834,62680.0,62679.0,3.08412169]
[1721041520289,0.00534,62680.0,62679.0,2.94722169]
[1721041520478,0.00534,62680.0,62679.0,3.26630769]
[1721041521177,0.00834,62684.0,62679.0,3.26630769]
[1721041521386,0.00834,62684.0,62680.0,3.13909844]
[1721041521590,0.00834,62684.0,62680.0,3.14956491]
[1721041522477,0.00834,62684.0,62680.0,3.14914629]
[1721041522940,0.00834,62684.0,62680.0,3.16314629]
[1721041523385,0.0163628,62698.0,62680.0,3.16314629]
[1721041523386,0.002,62689.0,62683.0,2.27128688]
[1721041523588,0.002,62689.0,62688.0,1.30046813]
[1721041523795,0.00087,62692.0,62691.0,0.66739488]
[1721041523998,0.00087,62692.0,62691.0,1.98607479]
[1721041524203,0.00087,62692.0,62691.0,2.30509979]
[1721041524411,0.00087,62692.0,62691.0,2.67186418]
[1721041525463,0.00087,62692.0,62691.0,2.36072991]
[1721041525701,0.00087,62692.0,62691.0,2.62812479]
[1721041526318,0.00087,62692.0,62691.0,2.76452479]
[1721041526551,0.00087,62692.0,62691.0,2.76252479]
[1721041527008,0.00087,62692.0,62691.0,2.76052479]
[1721041527215,0.00087,62692.0,62691.0,2.77052479]
[1721041528060,0.00087,62692.0,62691.0,2.77652479]
[1721041528513,0.00087,62692.0,62691.0,2.77052479]
[1721041528914,0.00087,62692.0,62691.0,2.78452479]
[1721041529167,0.00087,62692.0,62691.0,2.77452479]
[1721041529467,0.14187,62692.0,62691.0,1.38667991]
[1721041529673,0.14187,62692.0,62691.0,1.80570491]
[1721041529884,0.14187,62692.0,62691.0,1.88113259]
[1721041531339,0.14187,62692.0,62691.0,1.89047208]
[1721041531582,0.06357,62692.0,62691.0,2.37759708]
[1721041532002,0.00087,62692.0,62691.0,2.37759708]
[1721041532322,0.00087,62692.0,62691.0,2.46956428]
[1721041532537,0.00087,62692.0,62691.0,2.55556428]
[1721041532770,0.00087,62692.0,62691.0,2.04457208]
[1721041532974,0.00087,62692.0,62691.0,2.05857208]
[1721041533316,0.00087,62692.0,62691.0,2.04557208]
[1721041533531,0.08087,62692.0,62691.0,1.79147208]
[1721041533784,0.14197,62692.0,62691.0,1.77747208]
[1721041534628,0.14197,62692.0,62691.0,1.79147208]
[1721041535043,0.14197,62692.0,62691.0,1.67747208]
[1721041535259,0.14197,62692.0,62691.0,1.6020444]
[1721041535474,0.14197,62692.0,62691.0,1.5990444]
[1721041535683,0.14197,62692.0,62691.0,1.67447208]
[1721041536094,0.14197,62692.0,62691.0,1.66347208]
[1721041536882,0.14197,62692.0,62691.0,1.67347208]
[1721041537257,0.14197,62692.0,62691.0,1.66347208]
[1721041537388,0.14197,62692.0,62691.0,1.5880444]
[1721041537627,0.14197,62692.0,62691.0,1.68047208]
[1721041539878,0.14197,62692.0,62691.0,1.78047208]
[1721041540701,0.14197,62692.0,62691.0,1.68047208]
[1721041540912,0.13907,62692.0,62691.0,1.3090194]
[1721041541147,0.13657,62692.0,62691.0,1.3090194]
[1721041541375,1.01674457,62692.0,62691.0,0.02633949]
[1721041541605,1.01674457,62692.0,62691.0,0.017]
[1721041541805,1.01504457,62692.0,62691.0,0.017]
[1721041542230,1.01504457,62692.0,62691.0,0.008]
[1721041543053,1.44357636,62692.0,62691.0,0.008]
[1721041543261,1.51691532,62692.0,62691.0,0.008]
[1721041543693,1.63691532,62692.0,62691.0,0.008]
[1721041544349,1.63691532,62692.0,62679.0,0.04909285]
[1721041544350,0.04457232,62680.0,62679.0,0.04909285]
[1721041544555,0.11710512,62680.0,62679.0,0.04909285]
[1721041544757,0.0080328,62678.0,62677.0,0.1]
[1721041545408,0.00267499,62679.0,62677.0,0.10967862]
[1721041545575,0.00267499,62679.0,62678.0,0.159545]
[1721041545778,0.1412,62680.0,62679.0,0.019]
[1721041546014,0.1412,62680.0,62679.0,0.01]
[1721041546254,0.1412,62680.0,62679.0,0.00967082]
[1721041546468,0.1412,62680.0,62679.0,0.16921382]
[1721041546870,0.1412,62680.0,62679.0,0.00967082]
[1721041547310,0.1412,62680.0,62677.0,0.283547]
[1721041547576,0.00267499,62679.0,62677.0,0.283547]
[1721041547758,0.00267499,62679.0,62677.0,0.271547]
[1721041547969,0.05260512,62678.0,62677.0,0.112]
[1721041548184,0.05260512,62678.0,62675.0,0.200913]
[1721041548185,0.0698328,62678.0,62676.0,0.1]
[1721041548422,0.00267499,62677.0,62676.0,0.1]
[1721041548629,0.00017499,62677.0,62676.0,0.1]
[1721041548879,0.00017499,62677.0,62676.0,0.25955]
[1721041549075,0.00017499,62677.0,62676.0,0.578651]
[1721041549303,0.0618,62678.0,62677.0,0.168548]
[1721041549514,0.0618,62678.0,62677.0,0.268548]
[1721041549738,0.0618,62678.0,62677.0,0.263548]
[1721041550428,0.0618,62678.0,62677.0,0.97716768]
[1721041551073,0.0618,62678.0,62677.0,0.97316768]
[1721041551555,0.0618,62678.0,62677.0,0.97716768]
[1721041552215,0.0618,62678.0,62677.0,0.90174]
[1721041552754,0.0618,62678.0,62677.0,0.90674]
[1721041553372,0.0618,62678.0,62677.0,0.98216768]
[1721041553951,0.0618,62678.0,62677.0,0.98308068]
[1721041554382,0.0618,62678.0,62677.0,1.07408068]
[1721041557475,0.0618,62678.0,62677.0,0.998653]
[1721041561381,0.1528328,62678.0,62677.0,0.200913]
[1721041561586,0.99513212,62678.0,62677.0,0.009913]
[1721041561794,1.46409017,62678.0,62677.0,0.009913]
[1721041562000,1.48505716,62678.0,62677.0,0.009913]
[1721041562208,1.64717507,62678.0,62677.0,0.009913]
[1721041562424,2.05726607,62678.0,62677.0,0.009913]
[1721041562624,2.05729748,62678.0,62677.0,0.009913]
[1721041563451,2.05729748,62678.0,62677.0,0.004913]
[1721041563869,1.84629748,62678.0,62677.0,0.005913]
[1721041564079,1.04599757,62678.0,62677.0,0.005913]
[1721041564286,1.024903,62678.0,62677.0,0.005913]
[1721041564705,1.04571075,62678.0,62677.0,0.005913]
[1721041564911,1.04571075,62678.0,62677.0,0.001913]
[1721041565327,1.024903,62678.0,62677.0,0.002913]
[1721041565550,0.705812,62678.0,62677.0,0.002913]
[1721041565963,1.024903,62678.0,62677.0,0.002913]
[1721041566382,1.024903,62678.0,62677.0,0.001913]
[1721041566591,1.024903,62678.0,62677.0,0.000913]
[1721041566801,1.024903,62678.0,62677.0,0.002913]
[1721041567429,1.04458626,62678.0,62677.0,0.002913]
[1721041567641,1.024903,62678.0,62677.0,0.002913]
[1721041568701,1.0444971,62678.0,62677.0,0.002913]
[1721041568899,1.04414424,62678.0,62677.0,0.002913]
[1721041571196,1.02455069,62678.0,62677.0,0.002913]
[1721041571417,1.0441879,62678.0,62677.0,0.002913]
[1721041572070,1.33386254,62678.0,62677.0,0.002913]
[1721041572273,1.36332915,62678.0,62677.0,0.002913]
[1721041572478,1.31422312,62678.0,62677.0,0.002913]
[1721041572687,1.36354472,62678.0,62677.0,0.002913]
[1721041573313,0.18230048,62678.0,62677.0,0.002913]
[1721041573519,0.66492539,62678.0,62677.0,0.002913]
[1721041574064,0.34184548,62678.0,62677.0,0.002913]
[1721041575101,0.3123778,62678.0,62677.0,0.002913]
[1721041575307,0.1822228,62678.0,62677.0,0.002913]
[1721041577159,0.3417678,62678.0,62677.0,0.002913]
[1721041577379,0.3417678,62678.0,62675.0,0.1553452]
[1721041577603,0.02939,62677.0,62675.0,0.159553]
[1721041577820,0.02939,62677.0,62675.0,0.159551]
[1721041578531,0.02959375,62676.0,62675.0,0.159551]
[1721041578743,0.02959375,62676.0,62675.0,0.160551]
[1721041579186,0.02959375,62677.0,62675.0,0.159551]
[1721041579406,0.0080328,62676.0,62675.0,0.001]
[1721041579612,0.0080328,62675.0,62674.0,0.15974707]
[1721041579816,0.03762655,62675.0,62674.0,0.15974707]
[1721041580034,0.03762655,62675.0,62674.0,0.00019207]
[1721041581048,0.08219887,62675.0,62674.0,0.00019207]
[1721041581245,0.02959375,62675.0,62674.0,0.15974707]
[1721041581495,0.0080328,62677.0,62674.0,0.15974707]
[1721041581697,0.003,62675.0,62674.0,0.16074707]
[1721041581935,0.03247983,62675.0,62674.0,0.16074707]
[1721041582291,0.03247983,62675.0,62674.0,0.47985807]
[1721041582495,0.03147983,62675.0,62674.0,0.47885807]
[1721041582876,0.03147983,62675.0,62674.0,0.47985807]
[1721041583111,0.002,62675.0,62674.0,0.47985807]
[1721041583335,0.0314752,62675.0,62674.0,0.47985807]
[1721041583539,0.0314752,62675.0,62674.0,0.49038886]
[1721041583936,0.039508,62675.0,62674.0,0.01172286]
[1721041584144,0.38693332,62675.0,62674.0,0.01072286]
[1721041584557,0.38693332,62675.0,62674.0,0.01172286]
[1721041584766,0.38695462,62675.0,62674.0,0.01172286]
[1721041585189,0.38699155,62675.0,62674.0,0.01172286]
[1721041585408,0.34241923,62675.0,62674.0,0.01172286]
[1721041585817,0.34241923,62675.0,62674.0,0.00369006]
[1721041586042,0.34241923,62675.0,62674.0,0.001]
[1721041586043,0.71008644,62675.0,62674.0,0.001]
[1721041586249,0.39098044,62675.0,62674.0,0.001]
[1721041586451,0.38699155,62675.0,62674.0,0.001]
[1721041587123,0.38699155,62675.0,62674.0,0.01376587]
[1721041587943,0.38703412,62675.0,62674.0,0.01376587]
[1721041588385,0.334429,62675.0,62674.0,0.01376587]
[1721041588606,0.097576,62675.0,62674.0,0.01376587]
[1721041589653,0.1056088,62675.0,62674.0,0.01376587]
[1721041589866,0.2651618,62675.0,62674.0,0.01376587]
[1721041590281,0.1056088,62675.0,62674.0,0.01376587]
[1721041591165,0.10567606,62675.0,62674.0,0.01376587]
[1721041591379,0.09764326,62675.0,62674.0,0.08919355]
[1721041591587,0.09764326,62675.0,62674.0,0.17332087]
[1721041591792,0.09764326,62675.0,62674.0,0.01376587]
[1721041591995,0.10567606,62675.0,62674.0,0.01376587]
[1721041592828,0.09764326,62675.0,62674.0,0.01376587]
[1721041593035,0.10567606,62675.0,62674.0,0.01376587]
[1721041594332,0.10567606,62675.0,62674.0,0.10476587]
[1721041594583,0.10573142,62675.0,62674.0,0.10476587]
[1721041595215,0.12680018,62675.0,62674.0,0.10476587]
[1721041595950,0.10573142,62675.0,62674.0,0.10476587]
[1721041596129,0.03169862,62675.0,62674.0,0.58343187]
[1721041597698,0.0317243,62675.0,62674.0,0.58343187]
[1721041598163,0.002,62675.0,62674.0,0.58343187]
[1721041598389,0.03174163,62675.0,62674.0,0.58343187]
[1721041600719,0.002,62675.0,62674.0,0.58343187]
[1721041600971,0.03185276,62675.0,62674.0,0.58343187]
[1721041601179,0.05390641,62675.0,62674.0,0.58343187]
[1721041601510,0.03185276,62675.0,62674.0,0.58343187]
[1721041602357,0.03185276,62675.0,62674.0,0.82097746]
[1721041602563,0.002,62675.0,62674.0,1.62629946]
[1721041603850,0.00083,62678.0,62677.0,1.07316768]
[1721041604052,0.03049487,62678.0,62677.0,1.16416768]
[1721041604256,0.03049487,62678.0,62677.0,1.17602205]
[1721041605222,0.03049487,62678.0,62677.0,1.65723596]
[1721041605421,0.03049487,62678.0,62677.0,1.78023596]
[1721041605422,0.00083,62678.0,62677.0,1.78023596]
[1721041605841,0.00083,62678.0,62677.0,1.85913596]
[1721041606071,0.00183,62678.0,62677.0,1.86013596]
[1721041607013,0.00183,62678.0,62677.0,1.86113596]
[1721041607368,0.00183,62678.0,62677.0,2.88420676]
[1721041607670,0.00183,62678.0,62677.0,3.29010618]
[1721041607871,0.00183,62678.0,62677.0,3.40967671]
[1721041608075,0.00183,62678.0,62677.0,3.40963262]
[1721041608502,0.00183,62678.0,62677.0,3.38567898]
[1721041608703,0.00183,62678.0,62677.0,3.38467898]
[1721041609360,0.00183,62678.0,62677.0,3.28910618]
[1721041609563,0.00063801,62678.0,62677.0,3.28810618]
[1721041609801,0.00163801,62678.0,62677.0,3.28810618]
[1721041610193,0.00163801,62678.0,62677.0,3.35974751]
[1721041610417,0.00163801,62678.0,62677.0,2.80189916]
[1721041610568,0.00163801,62678.0,62677.0,3.35970749]
[1721041610774,0.00163801,62678.0,62677.0,3.15560028]
[1721041610976,0.00163801,62678.0,62677.0,3.2880583]
[1721041611151,0.00163801,62678.0,62677.0,3.00597711]
[1721041612148,0.00163801,62678.0,62677.0,2.93435719]
[1721041612352,0.00163801,62678.0,62677.0,3.00597711]
[1721041612724,0.00163801,62678.0,62677.0,3.35967678]
[1721041613138,0.00163801,62678.0,62677.0,2.93435719]
[1721041613733,0.00083,62692.0,62691.0,1.07298968]
[1721041614054,0.00083,62692.0,62691.0,1.67987845]
[1721041614931,0.00083,62692.0,62691.0,1.77987845]
[1721041615484,0.00083,62692.0,62691.0,1.78087845]
[1721041615694,0.00083,62692.0,62691.0,1.77987845]
[1721041616063,0.00083,62692.0,62691.0,1.78087845]
[1721041618088,0.00083,62692.0,62691.0,1.78487845]
[1721041620053,0.00083,62692.0,62691.0,1.88487845]
[1721041620260,0.00083,62692.0,62691.0,2.07684565]
[1721041620885,0.00083,62692.0,62691.0,1.88487845]
[1721041621366,0.00083,62692.0,62691.0,0.65737577]
[1721041621570,0.00083,62692.0,62691.0,1.06640077]
[1721041621785,0.00083,62692.0,62691.0,1.38542577]
[1721041622201,0.0839628,62692.0,62691.0,0.20274586]
[1721041622428,0.98848212,62692.0,62691.0,0.01374586]
[1721041622642,0.98848212,62692.0,62691.0,0.01874586]
[1721041622861,0.6248908,62692.0,62691.0,0.007]
[1721041623072,0.6248908,62692.0,62691.0,0.002]
[1721041623285,0.66946312,62692.0,62691.0,0.01327863]
[1721041623499,0.66946312,62692.0,62689.0,0.091]
[1721041623500,0.220515,62690.0,62689.0,0.091]
[1721041624335,0.220515,62690.0,62686.0,0.159525]
[1721041624762,0.061,62690.0,62689.0,0.478552]
[1721041625238,0.061,62690.0,62689.0,0.477552]
[1721041625649,0.061,62690.0,62689.0,0.158517]
[1721041625848,0.061,62690.0,62689.0,0.159517]
[1721041626059,0.061,62690.0,62689.0,0.160517]
[1721041626495,0.061,62690.0,62689.0,0.17380926]
[1721041627322,0.0690328,62690.0,62689.0,0.17380926]
[1721041627525,0.0690328,62690.0,62689.0,0.01529226]
[1721041628571,0.27312012,62690.0,62689.0,0.01529226]
[1721041629295,0.67455012,62690.0,62689.0,0.01529226]
[1721041629673,0.99358012,62690.0,62689.0,0.002]
[1721041630329,1.0230898,62690.0,62689.0,0.002]
[1721041632193,1.02304286,62690.0,62689.0,0.002]
[1721041633062,0.99358012,62690.0,62689.0,0.002]
[1721041633274,1.02295906,62690.0,62689.0,0.002]
[1721041635407,1.02288241,62690.0,62689.0,0.002]
[1721041636034,1.02290766,62690.0,62689.0,0.002]
[1721041636468,1.46193766,62690.0,62689.0,0.002]
[1721041636709,2.00925295,62690.0,62689.0,0.002]